[Event "Titled Tuesday Blitz June 13 Early 2023"]
[White "Fus, Jakub"]
[Black "Kubicka, Anna"]
[WhiteFideId "1193023"]
[BlackFideId "1152254"]
[WhiteElo "2335"]
[BlackElo "2144"]
[Result "1/2-1/2"]
[Round "9"]
[TimeControl "180+2"]
[Date "2023.06.13"]
[WhiteClock "0:00:12"]
[BlackClock "0:00:03"]
[Board "66"]

1. Nf3 {[%clk 0:03:00]}  g6 {[%clk 0:02:59]} 2. g3 {[%clk 0:02:59]}  Bg7 {[%clk 0:02:59]} 3. Bg2 {[%clk 0:03:00]}  e5 {[%clk 0:02:58]} 4. d3 {[%clk 0:03:00]}  d5 {[%clk 0:02:58]} 5. O-O {[%clk 0:03:00]}  Nc6 {[%clk 0:02:58]} 6. e4 {[%clk 0:02:51]}  Nge7 {[%clk 0:02:58]} 7. Nc3 {[%clk 0:02:41]}  d4 {[%clk 0:02:48]} 8. Ne2 {[%clk 0:02:38]}  O-O {[%clk 0:02:48]} 9. c3 {[%clk 0:02:27]}  h6 {[%clk 0:02:41]} 10. cxd4 {[%clk 0:02:21]}  Nxd4 {[%clk 0:02:42]} 11. Nfxd4 {[%clk 0:02:20]}  exd4 {[%clk 0:02:43]} 12. f4 {[%clk 0:02:19]}  Be6 {[%clk 0:02:28]} 13. Bd2 {[%clk 0:02:16]}  Qd7 {[%clk 0:02:26]} 14. Kh1 {[%clk 0:02:03]}  Bg4 {[%clk 0:02:21]} 15. Qe1 {[%clk 0:01:59]}  c5 {[%clk 0:02:16]} 16. Ng1 {[%clk 0:01:57]}  Rac8 {[%clk 0:02:05]} 17. h3 {[%clk 0:01:54]}  Be6 {[%clk 0:02:05]} 18. g4 {[%clk 0:01:48]}  f5 {[%clk 0:01:57]} 19. gxf5 {[%clk 0:01:33]}  gxf5 {[%clk 0:01:57]} 20. e5 {[%clk 0:01:33]}  Bd5 {[%clk 0:01:54]} 21. Nf3 {[%clk 0:01:31]}  Ng6 {[%clk 0:01:47]} 22. Qg3 {[%clk 0:01:29]}  Qe6 {[%clk 0:01:43]} 23. Rg1 {[%clk 0:01:23]}  Kf7 {[%clk 0:01:28]} 24. Kh2 {[%clk 0:01:17]}  Rg8 {[%clk 0:01:23]} 25. Nxd4 {[%clk 0:01:16]}  cxd4 {[%clk 0:01:04]} 26. Bxd5 {[%clk 0:01:16]}  Qxd5 {[%clk 0:01:05]} 27. Qxg6+ {[%clk 0:01:16]}  Ke7 {[%clk 0:00:58]} 28. Qxf5 {[%clk 0:00:56]}  Rc2 {[%clk 0:00:51]} 29. Rad1 {[%clk 0:00:45]}  a5 {[%clk 0:00:22]} 30. Rg2 {[%clk 0:00:36]}  Ke8 {[%clk 0:00:08]} 31. Rdg1 {[%clk 0:00:32]}  b6 {[%clk 0:00:05]} 32. Qh5+ {[%clk 0:00:25]}  Qf7 {[%clk 0:00:04]} 33. Qd1 {[%clk 0:00:20]}  Rxb2 {[%clk 0:00:02]} 34. Kh1 {[%clk 0:00:18]}  Rxa2 {[%clk 0:00:02]} 35. f5 {[%clk 0:00:18]}  Qxf5 {[%clk 0:00:02]} 36. Qb3 {[%clk 0:00:14]}  Qxh3+ {[%clk 0:00:02]} 37. Rh2 {[%clk 0:00:13]}  Qf3+ {[%clk 0:00:03]} 38. Rhg2 {[%clk 0:00:11]}  Qh3+ {[%clk 0:00:03]} 39. Rh2 {[%clk 0:00:12]}  Qf3+ {[%clk 0:00:03]} 40. Rhg2 {[%clk 0:00:12]}  Qh3+ {[%clk 0:00:03]} 1/2-1/2


[Site "https://www.chess.com"]

[Event "Titled Tuesday Blitz June 13 Early 2023"]
[White "Arabidze, Meri"]
[Black "whiteglovethief"]
[WhiteFideId "13604040"]
[WhiteElo "2405"]
[BlackElo "2509"]
[Result "1-0"]
[Round "9"]
[TimeControl "180+2"]
[Date "2023.06.13"]
[WhiteClock "0:00:33"]
[BlackClock "0:00:04"]
[Board "68"]

1. d4 {[%clk 0:02:57]}  Nf6 {[%clk 0:02:59]} 2. c4 {[%clk 0:02:58]}  g6 {[%clk 0:02:59]} 3. Nf3 {[%clk 0:02:57]}  Bg7 {[%clk 0:02:59]} 4. g3 {[%clk 0:02:58]}  O-O {[%clk 0:02:59]} 5. Bg2 {[%clk 0:02:58]}  d6 {[%clk 0:02:59]} 6. O-O {[%clk 0:02:58]}  Nbd7 {[%clk 0:03:00]} 7. Nc3 {[%clk 0:02:58]}  e5 {[%clk 0:03:00]} 8. e4 {[%clk 0:02:59]}  c6 {[%clk 0:02:57]} 9. h3 {[%clk 0:02:58]}  Qc7 {[%clk 0:02:55]} 10. Be3 {[%clk 0:02:56]}  Re8 {[%clk 0:02:55]} 11. Qc2 {[%clk 0:02:56]}  a5 {[%clk 0:02:49]} 12. Rad1 {[%clk 0:02:51]}  exd4 {[%clk 0:02:48]} 13. Bxd4 {[%clk 0:02:47]}  Nc5 {[%clk 0:02:47]} 14. Rfe1 {[%clk 0:02:47]}  Ne6 {[%clk 0:02:29]} 15. Be3 {[%clk 0:02:44]}  Bd7 {[%clk 0:02:21]} 16. b3 {[%clk 0:02:44]}  Rad8 {[%clk 0:02:20]} 17. Na4 {[%clk 0:02:43]}  c5 {[%clk 0:02:12]} 18. Nc3 {[%clk 0:02:41]}  Bc6 {[%clk 0:02:04]} 19. Bc1 {[%clk 0:02:41]}  a4 {[%clk 0:01:56]} 20. Nd5 {[%clk 0:02:32]}  Qb8 {[%clk 0:01:36]} 21. Bb2 {[%clk 0:02:27]}  Bxd5 {[%clk 0:01:28]} 22. exd5 {[%clk 0:02:26]}  Nc7 {[%clk 0:01:28]} 23. bxa4 {[%clk 0:02:05]}  Qa7 {[%clk 0:01:27]} 24. Bc3 {[%clk 0:02:04]}  Qa6 {[%clk 0:01:25]} 25. Bf1 {[%clk 0:02:00]}  Nd7 {[%clk 0:01:14]} 26. Bxg7 {[%clk 0:01:56]}  Kxg7 {[%clk 0:01:15]} 27. Qc3+ {[%clk 0:01:56]}  Kg8 {[%clk 0:01:13]} 28. a5 {[%clk 0:01:51]}  Ra8 {[%clk 0:01:07]} 29. Rxe8+ {[%clk 0:01:49]}  Nxe8 {[%clk 0:01:07]} 30. Rb1 {[%clk 0:01:48]}  Qxa5 {[%clk 0:00:51]} 31. Qxa5 {[%clk 0:01:47]}  Rxa5 {[%clk 0:00:52]} 32. Rxb7 {[%clk 0:01:47]}  Nef6 {[%clk 0:00:50]} 33. Rb2 {[%clk 0:01:41]}  Ne4 {[%clk 0:00:48]} 34. Bd3 {[%clk 0:01:29]}  Nc3 {[%clk 0:00:46]} 35. Rb7 {[%clk 0:01:29]}  Nf6 {[%clk 0:00:38]} 36. Ng5 {[%clk 0:01:28]}  Rxa2 {[%clk 0:00:29]} 37. Rxf7 {[%clk 0:01:25]}  h6 {[%clk 0:00:27]} 38. Rxf6 {[%clk 0:01:24]}  hxg5 {[%clk 0:00:28]} 39. Rxg6+ {[%clk 0:01:24]}  Kf7 {[%clk 0:00:28]} 40. Rxd6 {[%clk 0:01:25]}  Rd2 {[%clk 0:00:25]} 41. Bg6+ {[%clk 0:01:22]}  Kg7 {[%clk 0:00:24]} 42. Bf5 {[%clk 0:01:18]}  Nd1 {[%clk 0:00:19]} 43. Rg6+ {[%clk 0:01:09]}  Kf7 {[%clk 0:00:19]} 44. Rxg5 {[%clk 0:00:51]}  Kf6 {[%clk 0:00:19]} 45. h4 {[%clk 0:00:49]}  Nxf2 {[%clk 0:00:18]} 46. d6 {[%clk 0:00:41]}  Nd1 {[%clk 0:00:14]} 47. d7 {[%clk 0:00:39]}  Ne3 {[%clk 0:00:14]} 48. Rg8 {[%clk 0:00:34]}  Ke7 {[%clk 0:00:04]} 49. Re8+ {[%clk 0:00:33]} 1-0


[Site "https://www.chess.com"]

[Event "Titled Tuesday Blitz June 13 Early 2023"]
[White "Fiorito, Joaquin"]
[Black "gueraumasague"]
[WhiteFideId "180173"]
[WhiteElo "2199"]
[BlackElo "2503"]
[Result "1-0"]
[Round "9"]
[TimeControl "180+2"]
[Date "2023.06.13"]
[WhiteClock "0:00:10"]
[BlackClock "0:00:00"]
[Board "69"]

1. d4 {[%clk 0:02:58]}  g6 {[%clk 0:02:59]} 2. e4 {[%clk 0:02:56]}  Bg7 {[%clk 0:03:00]} 3. Nc3 {[%clk 0:02:57]}  c6 {[%clk 0:03:01]} 4. f4 {[%clk 0:02:55]}  d5 {[%clk 0:03:01]} 5. e5 {[%clk 0:02:55]}  h5 {[%clk 0:03:02]} 6. Nf3 {[%clk 0:02:49]}  Bg4 {[%clk 0:03:01]} 7. Be3 {[%clk 0:02:46]}  Nh6 {[%clk 0:03:01]} 8. Be2 {[%clk 0:02:46]}  e6 {[%clk 0:03:01]} 9. O-O {[%clk 0:02:44]}  Nd7 {[%clk 0:03:01]} 10. h3 {[%clk 0:02:42]}  Bxf3 {[%clk 0:03:00]} 11. Bxf3 {[%clk 0:02:42]}  Nf5 {[%clk 0:03:01]} 12. Bf2 {[%clk 0:02:43]}  h4 {[%clk 0:03:01]} 13. Ne2 {[%clk 0:02:40]}  Bf8 {[%clk 0:02:59]} 14. c3 {[%clk 0:02:37]}  Be7 {[%clk 0:02:58]} 15. b4 {[%clk 0:02:37]}  a5 {[%clk 0:02:57]} 16. a3 {[%clk 0:02:36]}  Nb6 {[%clk 0:02:50]} 17. Qd3 {[%clk 0:02:21]}  Nc4 {[%clk 0:02:47]} 18. a4 {[%clk 0:01:52]}  Kf8 {[%clk 0:02:22]} 19. Rfb1 {[%clk 0:01:48]}  Kg7 {[%clk 0:02:10]} 20. b5 {[%clk 0:01:46]}  cxb5 {[%clk 0:01:59]} 21. Rxb5 {[%clk 0:01:44]}  Qd7 {[%clk 0:01:57]} 22. Be1 {[%clk 0:01:04]}  Rac8 {[%clk 0:01:56]} 23. Kh1 {[%clk 0:00:45]}  Rc7 {[%clk 0:01:55]} 24. Nc1 {[%clk 0:00:42]}  Rhc8 {[%clk 0:01:37]} 25. Be2 {[%clk 0:00:42]}  Bd8 {[%clk 0:01:28]} 26. Qb1 {[%clk 0:00:38]}  Be7 {[%clk 0:01:11]} 27. Bxc4 {[%clk 0:00:36]}  dxc4 {[%clk 0:01:11]} 28. Qe4 {[%clk 0:00:28]}  Ra8 {[%clk 0:01:00]} 29. Rab1 {[%clk 0:00:28]}  Ra7 {[%clk 0:00:57]} 30. Bf2 {[%clk 0:00:28]}  Bd8 {[%clk 0:00:38]} 31. Ne2 {[%clk 0:00:18]}  Qc6 {[%clk 0:00:30]} 32. d5 {[%clk 0:00:17]}  exd5 {[%clk 0:00:30]} 33. Qxd5 {[%clk 0:00:18]}  Qxd5 {[%clk 0:00:23]} 34. Rxd5 {[%clk 0:00:19]}  Ra8 {[%clk 0:00:24]} 35. Rbb5 {[%clk 0:00:17]}  Re7 {[%clk 0:00:18]} 36. Bc5 {[%clk 0:00:18]}  Re6 {[%clk 0:00:17]} 37. Nd4 {[%clk 0:00:18]}  Ng3+ {[%clk 0:00:13]} 38. Kg1 {[%clk 0:00:17]}  Re8 {[%clk 0:00:14]} 39. Rxb7 {[%clk 0:00:16]}  Rc8 {[%clk 0:00:08]} 40. e6 {[%clk 0:00:16]}  Kh6 {[%clk 0:00:00]} 41. e7 {[%clk 0:00:10]} 1-0


[Site "https://www.chess.com"]

[Event "Titled Tuesday Blitz June 13 Early 2023"]
[White "Ovetchkin, Roman"]
[Black "Petukhov, Dmitry"]
[WhiteFideId "4119991"]
[BlackFideId "4142748"]
[WhiteElo "2398"]
[BlackElo "2311"]
[Result "0-1"]
[Round "9"]
[TimeControl "180+2"]
[Date "2023.06.13"]
[WhiteClock "0:00:05"]
[BlackClock "0:00:12"]
[Board "70"]

1. d4 {[%clk 0:03:00]}  Nf6 {[%clk 0:02:59]} 2. c4 {[%clk 0:03:00]}  g6 {[%clk 0:02:59]} 3. Nc3 {[%clk 0:02:59]}  d5 {[%clk 0:02:56]} 4. cxd5 {[%clk 0:02:59]}  Nxd5 {[%clk 0:02:55]} 5. e4 {[%clk 0:02:59]}  Nxc3 {[%clk 0:02:51]} 6. bxc3 {[%clk 0:03:00]}  Bg7 {[%clk 0:02:50]} 7. Be3 {[%clk 0:03:01]}  O-O {[%clk 0:02:45]} 8. Qd2 {[%clk 0:03:00]}  c5 {[%clk 0:02:45]} 9. d5 {[%clk 0:02:59]}  e6 {[%clk 0:02:27]} 10. Bxc5 {[%clk 0:02:34]}  Qc7 {[%clk 0:02:22]} 11. Bd4 {[%clk 0:02:32]}  Bxd4 {[%clk 0:02:20]} 12. Qxd4 {[%clk 0:02:29]}  exd5 {[%clk 0:02:17]} 13. exd5 {[%clk 0:02:30]}  Re8+ {[%clk 0:02:13]} 14. Be2 {[%clk 0:02:30]}  Nd7 {[%clk 0:01:56]} 15. Rd1 {[%clk 0:02:05]}  Nc5 {[%clk 0:01:50]} 16. d6 {[%clk 0:01:54]}  Qc6 {[%clk 0:01:49]} 17. Nf3 {[%clk 0:01:43]}  Bf5 {[%clk 0:01:33]} 18. Rd2 {[%clk 0:01:11]}  Ne4 {[%clk 0:01:14]} 19. Rd3 {[%clk 0:01:11]}  Nc5 {[%clk 0:01:06]} 20. Re3 {[%clk 0:01:06]}  Rxe3 {[%clk 0:00:59]} 21. fxe3 {[%clk 0:01:06]}  Rd8 {[%clk 0:00:54]} 22. Bc4 {[%clk 0:01:04]}  Be6 {[%clk 0:00:47]} 23. Bxe6 {[%clk 0:00:44]}  Nxe6 {[%clk 0:00:48]} 24. Qf6 {[%clk 0:00:45]}  Qxd6 {[%clk 0:00:39]} 25. O-O {[%clk 0:00:43]}  Nc5 {[%clk 0:00:39]} 26. Qh4 {[%clk 0:00:41]}  Rd7 {[%clk 0:00:32]} 27. Ng5 {[%clk 0:00:40]}  h5 {[%clk 0:00:28]} 28. Qf2 {[%clk 0:00:21]}  Qe7 {[%clk 0:00:28]} 29. Qf4 {[%clk 0:00:19]}  Nd3 {[%clk 0:00:24]} 30. Qg3 {[%clk 0:00:18]}  h4 {[%clk 0:00:13]} 31. Qxh4 {[%clk 0:00:16]}  Qxe3+ {[%clk 0:00:13]} 32. Kh1 {[%clk 0:00:15]}  Nf2+ {[%clk 0:00:13]} 33. Kg1 {[%clk 0:00:12]}  Nh3+ {[%clk 0:00:12]} 34. Kh1 {[%clk 0:00:05]}  Nxg5 {[%clk 0:00:12]} 0-1


[Site "https://www.chess.com"]

[Event "Titled Tuesday Blitz June 13 Early 2023"]
[White "UNSTOPPABLE_LEGEND"]
[Black "Pastar, Slaven"]
[BlackFideId "14402718"]
[WhiteElo "2472"]
[BlackElo "2219"]
[Result "0-1"]
[Round "9"]
[TimeControl "180+2"]
[Date "2023.06.13"]
[WhiteClock "0:00:24"]
[BlackClock "0:00:30"]
[Board "72"]

1. d4 {[%clk 0:02:54]}  b6 {[%clk 0:03:00]} 2. e4 {[%clk 0:02:50]}  Bb7 {[%clk 0:03:01]} 3. Bd3 {[%clk 0:02:51]}  Nf6 {[%clk 0:03:02]} 4. Qe2 {[%clk 0:02:48]}  e6 {[%clk 0:03:02]} 5. Nf3 {[%clk 0:02:46]}  d5 {[%clk 0:03:03]} 6. e5 {[%clk 0:02:37]}  Ne4 {[%clk 0:03:03]} 7. O-O {[%clk 0:02:37]}  Be7 {[%clk 0:03:03]} 8. Nbd2 {[%clk 0:02:35]}  Nxd2 {[%clk 0:03:03]} 9. Qxd2 {[%clk 0:02:36]}  c5 {[%clk 0:03:03]} 10. c3 {[%clk 0:02:35]}  a5 {[%clk 0:03:01]} 11. Qf4 {[%clk 0:02:27]}  Ba6 {[%clk 0:03:00]} 12. Bxa6 {[%clk 0:02:25]}  Rxa6 {[%clk 0:02:58]} 13. Qg4 {[%clk 0:02:23]}  g6 {[%clk 0:02:58]} 14. Bh6 {[%clk 0:02:22]}  Bf8 {[%clk 0:02:55]} 15. Be3 {[%clk 0:01:59]}  h5 {[%clk 0:02:53]} 16. Qh3 {[%clk 0:01:58]}  Be7 {[%clk 0:02:47]} 17. Rfd1 {[%clk 0:01:55]}  c4 {[%clk 0:02:46]} 18. b3 {[%clk 0:01:55]}  b5 {[%clk 0:02:45]} 19. a4 {[%clk 0:01:55]}  cxb3 {[%clk 0:02:20]} 20. axb5 {[%clk 0:01:55]}  Rb6 {[%clk 0:02:20]} 21. Rxa5 {[%clk 0:01:55]}  Rb7 {[%clk 0:02:21]} 22. Ra8 {[%clk 0:01:37]}  Rxb5 {[%clk 0:02:19]} 23. c4 {[%clk 0:01:28]}  dxc4 {[%clk 0:02:16]} 24. d5 {[%clk 0:01:29]}  b2 {[%clk 0:02:02]} 25. Rb1 {[%clk 0:01:28]}  Qxd5 {[%clk 0:01:56]} 26. Ra7 {[%clk 0:01:22]}  c3 {[%clk 0:01:26]} 27. Ne1 {[%clk 0:01:06]}  Qe4 {[%clk 0:01:18]} 28. Rxe7+ {[%clk 0:00:58]}  Kxe7 {[%clk 0:01:18]} 29. Bg5+ {[%clk 0:00:59]}  Kd7 {[%clk 0:00:58]} 30. Qxc3 {[%clk 0:00:55]}  Qxb1 {[%clk 0:00:48]} 31. Qd4+ {[%clk 0:00:45]}  Rd5 {[%clk 0:00:46]} 32. Qa7+ {[%clk 0:00:45]}  Kc8 {[%clk 0:00:45]} 33. Bd2 {[%clk 0:00:37]}  Qxe1+ {[%clk 0:00:40]} 34. Bxe1 {[%clk 0:00:37]}  b1=Q {[%clk 0:00:40]} 35. Kf1 {[%clk 0:00:35]}  Rhd8 {[%clk 0:00:39]} 36. g4 {[%clk 0:00:32]}  Rd1 {[%clk 0:00:32]} 37. Qc5+ {[%clk 0:00:28]}  Kb7 {[%clk 0:00:32]} 38. Qe7+ {[%clk 0:00:24]}  R8d7 {[%clk 0:00:30]} 0-1


[Site "https://www.chess.com"]

[Event "Titled Tuesday Blitz June 13 Early 2023"]
[White "The_Sherman_Variation"]
[Black "Becerra, Juan David"]
[BlackFideId "4404998"]
[WhiteElo "2461"]
[BlackElo "2304"]
[Result "1/2-1/2"]
[Round "9"]
[TimeControl "180+2"]
[Date "2023.06.13"]
[WhiteClock "0:00:02"]
[BlackClock "0:00:07"]
[Board "73"]

1. Nf3 {[%clk 0:03:00]}  d5 {[%clk 0:02:59]} 2. d4 {[%clk 0:02:55]}  Nf6 {[%clk 0:02:59]} 3. Bf4 {[%clk 0:02:56]}  c5 {[%clk 0:02:58]} 4. e3 {[%clk 0:02:53]}  Nc6 {[%clk 0:02:57]} 5. Nbd2 {[%clk 0:02:46]}  Bg4 {[%clk 0:02:52]} 6. Be2 {[%clk 0:02:38]}  e6 {[%clk 0:02:51]} 7. O-O {[%clk 0:02:29]}  Be7 {[%clk 0:02:45]} 8. h3 {[%clk 0:02:28]}  Bh5 {[%clk 0:02:32]} 9. c3 {[%clk 0:02:28]}  O-O {[%clk 0:02:29]} 10. Ne5 {[%clk 0:02:26]}  Bxe2 {[%clk 0:02:26]} 11. Qxe2 {[%clk 0:02:22]}  Rc8 {[%clk 0:02:17]} 12. g4 {[%clk 0:02:05]}  Nxe5 {[%clk 0:02:03]} 13. Bxe5 {[%clk 0:01:58]}  Nd7 {[%clk 0:02:03]} 14. Bg3 {[%clk 0:01:58]}  Qb6 {[%clk 0:01:52]} 15. Nf3 {[%clk 0:01:55]}  f5 {[%clk 0:01:41]} 16. Kg2 {[%clk 0:01:53]}  Bd6 {[%clk 0:01:37]} 17. Ne5 {[%clk 0:01:50]}  Bxe5 {[%clk 0:01:32]} 18. dxe5 {[%clk 0:01:44]}  c4 {[%clk 0:01:27]} 19. f4 {[%clk 0:01:36]}  Nc5 {[%clk 0:01:25]} 20. Rad1 {[%clk 0:01:23]}  Ne4 {[%clk 0:01:14]} 21. Bh4 {[%clk 0:01:19]}  Qc5 {[%clk 0:01:07]} 22. Kh2 {[%clk 0:01:09]}  b5 {[%clk 0:00:59]} 23. Rg1 {[%clk 0:01:05]}  Rc7 {[%clk 0:00:59]} 24. Rg2 {[%clk 0:01:00]}  a5 {[%clk 0:00:59]} 25. Rdg1 {[%clk 0:00:54]}  b4 {[%clk 0:00:59]} 26. gxf5 {[%clk 0:00:47]}  Rxf5 {[%clk 0:00:58]} 27. Bd8 {[%clk 0:00:39]}  Rd7 {[%clk 0:00:46]} 28. cxb4 {[%clk 0:00:38]}  axb4 {[%clk 0:00:46]} 29. Qg4 {[%clk 0:00:36]}  Qf8 {[%clk 0:00:44]} 30. Bb6 {[%clk 0:00:33]}  c3 {[%clk 0:00:38]} 31. bxc3 {[%clk 0:00:32]}  bxc3 {[%clk 0:00:39]} 32. Bd4 {[%clk 0:00:33]}  g6 {[%clk 0:00:38]} 33. Qd1 {[%clk 0:00:29]}  Kf7 {[%clk 0:00:36]} 34. Qa4 {[%clk 0:00:27]}  Qc8 {[%clk 0:00:36]} 35. Rc1 {[%clk 0:00:25]}  Rc7 {[%clk 0:00:27]} 36. Rgc2 {[%clk 0:00:25]}  g5 {[%clk 0:00:26]} 37. Rg2 {[%clk 0:00:20]}  h6 {[%clk 0:00:23]} 38. fxg5 {[%clk 0:00:20]}  Nxg5 {[%clk 0:00:22]} 39. Qb3 {[%clk 0:00:17]}  Nf3+ {[%clk 0:00:20]} 40. Kh1 {[%clk 0:00:18]}  Rb7 {[%clk 0:00:17]} 41. Qxc3 {[%clk 0:00:17]}  Qxc3 {[%clk 0:00:17]} 42. Bxc3 {[%clk 0:00:17]}  Nxe5 {[%clk 0:00:11]} 43. Rgc2 {[%clk 0:00:17]}  Nc4 {[%clk 0:00:10]} 44. Bd4 {[%clk 0:00:16]}  Rb8 {[%clk 0:00:08]} 45. Rg1 {[%clk 0:00:17]}  Rg8 {[%clk 0:00:08]} 46. Rxg8 {[%clk 0:00:16]}  Kxg8 {[%clk 0:00:09]} 47. Rg2+ {[%clk 0:00:17]}  Kf8 {[%clk 0:00:10]} 48. Bg7+ {[%clk 0:00:15]}  Kf7 {[%clk 0:00:10]} 49. Bxh6 {[%clk 0:00:16]}  Rf1+ {[%clk 0:00:09]} 50. Kh2 {[%clk 0:00:16]}  Ra1 {[%clk 0:00:09]} 51. Bf4 {[%clk 0:00:16]}  e5 {[%clk 0:00:09]} 52. Bg5 {[%clk 0:00:16]}  Ke6 {[%clk 0:00:09]} 53. h4 {[%clk 0:00:16]}  e4 {[%clk 0:00:09]} 54. Kg3 {[%clk 0:00:17]}  Ne5 {[%clk 0:00:09]} 55. h5 {[%clk 0:00:16]}  Rf1 {[%clk 0:00:08]} 56. Bf4 {[%clk 0:00:16]}  Nd3 {[%clk 0:00:07]} 57. h6 {[%clk 0:00:16]}  Rf3+ {[%clk 0:00:07]} 58. Kh4 {[%clk 0:00:16]}  Nxf4 {[%clk 0:00:07]} 59. exf4 {[%clk 0:00:16]}  Rxf4+ {[%clk 0:00:08]} 60. Kg5 {[%clk 0:00:16]}  Rf3 {[%clk 0:00:07]} 61. h7 {[%clk 0:00:16]}  Rh3 {[%clk 0:00:07]} 62. Kg6 {[%clk 0:00:16]}  e3 {[%clk 0:00:07]} 63. a4 {[%clk 0:00:17]}  d4 {[%clk 0:00:07]} 64. a5 {[%clk 0:00:17]}  d3 {[%clk 0:00:08]} 65. a6 {[%clk 0:00:18]}  e2 {[%clk 0:00:07]} 66. a7 {[%clk 0:00:09]}  e1=Q {[%clk 0:00:06]} 67. a8=Q {[%clk 0:00:09]}  Rg3+ {[%clk 0:00:04]} 68. Rxg3 {[%clk 0:00:09]}  Qxg3+ {[%clk 0:00:05]} 69. Kh6 {[%clk 0:00:09]}  Qh4+ {[%clk 0:00:05]} 70. Kg7 {[%clk 0:00:09]}  Qf6+ {[%clk 0:00:04]} 71. Kg8 {[%clk 0:00:09]}  Qf7+ {[%clk 0:00:05]} 72. Kh8 {[%clk 0:00:10]}  Kf6 {[%clk 0:00:03]} 73. Qf3+ {[%clk 0:00:09]}  Ke7 {[%clk 0:00:02]} 74. Qe4+ {[%clk 0:00:08]}  Kf8 {[%clk 0:00:02]} 75. Qb4+ {[%clk 0:00:08]}  Ke8 {[%clk 0:00:02]} 76. Qb8+ {[%clk 0:00:09]}  Ke7 {[%clk 0:00:03]} 77. Qb7+ {[%clk 0:00:09]}  Kf6 {[%clk 0:00:03]} 78. Qf3+ {[%clk 0:00:08]}  Kg6 {[%clk 0:00:03]} 79. Qxd3+ {[%clk 0:00:07]}  Kh6 {[%clk 0:00:04]} 80. Qh3+ {[%clk 0:00:07]}  Kg6 {[%clk 0:00:04]} 81. Qg4+ {[%clk 0:00:07]}  Kf6 {[%clk 0:00:05]} 82. Qg8 {[%clk 0:00:06]}  Ke6 {[%clk 0:00:04]} 83. Qg7 {[%clk 0:00:05]}  Ke7 {[%clk 0:00:04]} 84. Qe5+ {[%clk 0:00:05]}  Kf8 {[%clk 0:00:04]} 85. Qb8+ {[%clk 0:00:05]}  Ke7 {[%clk 0:00:05]} 86. Qc7+ {[%clk 0:00:05]}  Kf6 {[%clk 0:00:05]} 87. Qd6+ {[%clk 0:00:05]}  Kg5 {[%clk 0:00:05]} 88. Qd8+ {[%clk 0:00:06]}  Kg6 {[%clk 0:00:05]} 89. Qg8+ {[%clk 0:00:06]}  Kf6 {[%clk 0:00:06]} 90. Qxf7+ {[%clk 0:00:02]}  Kxf7 {[%clk 0:00:07]} 1/2-1/2


[Site "https://www.chess.com"]

[Event "Titled Tuesday Blitz June 13 Early 2023"]
[White "DanyKopy"]
[Black "Camilla_Lee"]
[WhiteElo "2448"]
[BlackElo "2591"]
[Result "1-0"]
[Round "9"]
[TimeControl "180+2"]
[Date "2023.06.13"]
[WhiteClock "0:01:09"]
[BlackClock "0:00:32"]
[Board "74"]

1. e4 {[%clk 0:02:55]}  e5 {[%clk 0:03:00]} 2. Nf3 {[%clk 0:02:51]}  Nc6 {[%clk 0:03:00]} 3. Nc3 {[%clk 0:02:46]}  Nf6 {[%clk 0:03:00]} 4. d4 {[%clk 0:02:46]}  exd4 {[%clk 0:03:00]} 5. Nxd4 {[%clk 0:02:47]}  Bb4 {[%clk 0:03:00]} 6. Nxc6 {[%clk 0:02:48]}  bxc6 {[%clk 0:03:00]} 7. Bd3 {[%clk 0:02:48]}  d5 {[%clk 0:03:00]} 8. exd5 {[%clk 0:02:46]}  Qe7+ {[%clk 0:03:00]} 9. Be2 {[%clk 0:02:25]}  cxd5 {[%clk 0:02:45]} 10. O-O {[%clk 0:02:24]}  Bxc3 {[%clk 0:02:44]} 11. bxc3 {[%clk 0:02:23]}  O-O {[%clk 0:02:44]} 12. a4 {[%clk 0:02:13]}  Re8 {[%clk 0:02:36]} 13. Bd3 {[%clk 0:02:11]}  Bg4 {[%clk 0:02:29]} 14. f3 {[%clk 0:02:04]}  Qc5+ {[%clk 0:02:21]} 15. Kh1 {[%clk 0:02:02]}  Bh5 {[%clk 0:02:21]} 16. Qd2 {[%clk 0:01:59]}  Bg6 {[%clk 0:02:05]} 17. Ba3 {[%clk 0:01:56]}  Qe3 {[%clk 0:02:05]} 18. Qxe3 {[%clk 0:01:55]}  Rxe3 {[%clk 0:02:05]} 19. Rfe1 {[%clk 0:01:46]}  Re6 {[%clk 0:00:59]} 20. Rxe6 {[%clk 0:01:36]}  fxe6 {[%clk 0:01:00]} 21. Bxg6 {[%clk 0:01:36]}  hxg6 {[%clk 0:01:00]} 22. Rb1 {[%clk 0:01:36]}  Ne8 {[%clk 0:00:58]} 23. Rb7 {[%clk 0:01:32]}  a6 {[%clk 0:00:54]} 24. Kg1 {[%clk 0:01:27]}  Kf7 {[%clk 0:00:54]} 25. f4 {[%clk 0:01:24]}  g5 {[%clk 0:00:53]} 26. fxg5 {[%clk 0:01:21]}  Kg6 {[%clk 0:00:50]} 27. h4 {[%clk 0:01:20]}  Kf5 {[%clk 0:00:50]} 28. Kf2 {[%clk 0:01:17]}  Ke4 {[%clk 0:00:47]} 29. Rb4+ {[%clk 0:01:15]}  Kf5 {[%clk 0:00:44]} 30. g4+ {[%clk 0:01:14]}  Ke5 {[%clk 0:00:43]} 31. Bc1 {[%clk 0:01:13]}  d4 {[%clk 0:00:31]} 32. Rxd4 {[%clk 0:01:10]}  Nd6 {[%clk 0:00:32]} 33. Bf4# {[%clk 0:01:09]} 1-0


[Site "https://www.chess.com"]

[Event "Titled Tuesday Blitz June 13 Early 2023"]
[White "Thecourseoisildur"]
[Black "Rios Escobar, Adan"]
[BlackFideId "3403645"]
[WhiteElo "2590"]
[BlackElo "2466"]
[Result "1-0"]
[Round "9"]
[TimeControl "180+2"]
[Date "2023.06.13"]
[WhiteClock "0:01:22"]
[BlackClock "0:01:40"]
[Board "75"]

1. e4 {[%clk 0:03:00]}  c5 {[%clk 0:02:51]} 2. Nf3 {[%clk 0:03:00]}  d6 {[%clk 0:02:51]} 3. d4 {[%clk 0:03:01]}  cxd4 {[%clk 0:02:52]} 4. Nxd4 {[%clk 0:03:01]}  Nf6 {[%clk 0:02:53]} 5. Nc3 {[%clk 0:03:01]}  a6 {[%clk 0:02:53]} 6. Be2 {[%clk 0:03:01]}  e5 {[%clk 0:02:52]} 7. Nb3 {[%clk 0:03:01]}  Be6 {[%clk 0:02:52]} 8. O-O {[%clk 0:03:01]}  Nbd7 {[%clk 0:02:53]} 9. Qd3 {[%clk 0:02:59]}  Rc8 {[%clk 0:02:52]} 10. Bd2 {[%clk 0:02:49]}  Be7 {[%clk 0:02:38]} 11. Nd5 {[%clk 0:02:20]}  Bxd5 {[%clk 0:02:31]} 12. exd5 {[%clk 0:02:20]}  e4 {[%clk 0:02:22]} 13. Qe3 {[%clk 0:02:14]}  Ne5 {[%clk 0:02:21]} 14. Nd4 {[%clk 0:02:04]}  O-O {[%clk 0:02:18]} 15. Nf5 {[%clk 0:01:53]}  Rxc2 {[%clk 0:02:11]} 16. Bc3 {[%clk 0:01:44]}  Ng6 {[%clk 0:02:01]} 17. Bd1 {[%clk 0:01:25]}  Rxc3 {[%clk 0:01:40]} 18. Qxc3 {[%clk 0:01:23]}  Nxd5 {[%clk 0:01:40]} 19. Qxg7# {[%clk 0:01:22]} 1-0


[Site "https://www.chess.com"]